fUSD/lending_fUSD_20250421
["ID","MTS","AMOUNT","RATE_DAILY","PERIOD"]
[358501189,1745214660591,-500.0,0.00065205,120]
[358501190,1745214660601,-638.66,0.00065205,120]
[358501191,1745214660611,-926.33,0.00065205,120]
[358501192,1745214660620,-500.0,0.00065205,120]
[358501193,1745214660630,-417.83836655,0.00065205,120]
[358501194,1745214660639,-869.56,0.00065205,120]
[358501195,1745214660649,-500.0,0.00065205,120]
[358501196,1745214660658,-591.62,0.00065205,120]
[358501197,1745214660667,-1833.37,0.00065205,120]
[358501198,1745214660677,-500.0,0.00065205,8]
[358501199,1745214660686,-910.06,0.00065205,120]
[358501200,1745214660696,-829.15,0.00065205,120]
[358501201,1745214660705,-500.0,0.00065205,120]
[358501202,1745214660716,-768.77,0.00065205,120]
[358501203,1745214660726,-597.8,0.00065205,120]
[358501204,1745214660736,-2883.81,0.00065205,2]
[358501205,1745214660745,-677.43,0.00065205,120]
[358501206,1745214660755,-1616.9,0.00065205,120]
[358501207,1745214660765,-500.0,0.00065205,120]
[358501208,1745214660775,-1210.3,0.00065205,120]
[358501209,1745214660785,-500.0,0.00065205,120]
[358501210,1745214660794,-549.92,0.00065205,120]
[358501211,1745214660804,-500.0,0.00065205,2]
[358501212,1745214660814,-1260.87,0.00065205,120]
[358501213,1745214660824,-967.34,0.00065205,120]
[358501214,1745214660834,-500.0,0.00065205,120]
[358501215,1745214660843,-500.0,0.00065205,120]
[358501216,1745214660854,-928.59,0.00065205,120]
[358501217,1745214660867,-684.21,0.00065205,120]
[358501218,1745214660877,-500.0,0.00065205,120]
[358501219,1745214660887,-500.0,0.00065206,120]
[358501220,1745214660897,-500.0,0.00065206,120]
[358501221,1745214660907,-1984.0,0.00065206,120]
[358501222,1745214660917,-791.0,0.00065206,120]
[358501223,1745214660927,-500.0,0.00065206,120]
[358501224,1745214660938,-500.0,0.00065206,120]
[358501225,1745214660948,-500.0,0.00065206,120]
[358501226,1745214660957,-200.0,0.00065253,120]
[358501227,1745214660967,-1638.6,0.000653,2]
[358501228,1745214660979,-1638.6,0.000653,2]
[358501229,1745214660989,-1638.6,0.000653,2]
[358501230,1745214660999,-327.72,0.000653,2]
[358501231,1745214661008,-327.72,0.000653,2]
[358501232,1745214661019,-327.72,0.000653,2]
[358501233,1745214661029,-193.96,0.000653,2]
[358501234,1745214661038,-193.96,0.000653,2]
[358501235,1745214661048,-576.37,0.000653,2]
[358501236,1745214661058,-576.37,0.000653,2]
[358501237,1745214661067,-576.37,0.000653,2]
[358501238,1745214661077,-480.87,0.000653,120]
[358501239,1745214661086,-1265.00426456,0.00065362,15]
[358501240,1745214661096,-1000.0,0.00065396,120]
[358501241,1745214661106,-600.0,0.00065481,120]
[358501242,1745214661115,-1455.0,0.00065621,60]
[358501243,1745214661125,-2346.28036655,0.00065638,30]
[358501244,1745214661134,-1086.61526363,0.00065658,120]
[358501245,1745214661144,-599.27,0.00065753,120]
[358501246,1745214661153,-239.27,0.00065753,120]
[358501247,1745214661162,-222.14516363,0.00065753,120]
[358501248,1745214661171,-500.0,0.00065753,120]
[358501249,1745214661181,-947.83,0.00065753,120]
[358501250,1745214661190,-500.0,0.00065753,120]
[358501251,1745214661199,-648.72,0.00065753,120]
[358501252,1745214661208,-532.17637582,0.00065753,120]
[358501253,1745214661218,-500.0,0.00065753,2]
[358501254,1745214661230,-615.73623825,0.00065753,120]
[358501255,1745214661240,-500.0,0.00065753,120]
[358501256,1745214661250,-500.0,0.00065753,120]
[358501257,1745214661259,-500.0,0.00065753,14]
[358501258,1745214661269,-1007.83,0.00065753,120]
[358501259,1745214661278,-500.0,0.00065753,120]
[358501260,1745214661287,-527.13,0.00065753,120]
[358501261,1745214661297,-1890.04,0.00065753,120]
[358501262,1745214661306,-676.5,0.00065753,120]
[358501263,1745214661316,-209.69741134,0.00065753,120]
[358501264,1745214661325,-841.95,0.00065753,120]
[358501265,1745214661335,-500.0,0.00065753,120]
[358501266,1745214661344,-793.51,0.00065753,120]
[358501267,1745214661354,-500.0,0.00065753,120]
[358501268,1745214661364,-500.0,0.00065753,120]
[358501269,1745214661375,-500.0,0.00065753,120]
[358501270,1745214661385,-500.0,0.00065753,120]
[358501271,1745214661395,-373.61822784,0.00065753,120]
[358501272,1745214661404,-500.0,0.00065753,120]
[358501273,1745214661413,-1888.77,0.00065753,120]
[358501274,1745214661423,-500.0,0.00065753,120]
[358501275,1745214661433,-500.0,0.00065753,120]
[358501276,1745214661442,-500.0,0.00065753,120]
[358501277,1745214661451,-500.0,0.00065753,12]
[358501278,1745214661461,-612.09,0.00065753,120]
[358501279,1745214661470,-500.0,0.00065753,120]
[358501280,1745214661483,-592.31,0.00065753,120]
[358501281,1745214661492,-500.0,0.00065753,120]
[358501282,1745214661502,-1478.95,0.00065753,120]
[358501283,1745214661512,-656.63,0.00065753,120]
[358501284,1745214661522,-500.0,0.00065753,120]
[358501285,1745214661533,-608.34,0.00065753,120]
[358501286,1745214661542,-411.7818943,0.00065753,120]
[358501287,1745214661552,-638.66,0.00065753,120]
[358501288,1745214661562,-926.33,0.00065753,120]
[358501289,1745214661572,-500.0,0.00065753,120]
[358501290,1745214661581,-869.56,0.00065753,120]
[358501291,1745214661591,-500.0,0.00065753,120]
[358501292,1745214661600,-591.62,0.00065753,120]
[358501293,1745214661610,-1833.37,0.00065753,120]
[358501294,1745214661620,-500.0,0.00065753,8]
[358501295,1745214661629,-910.06,0.00065753,120]
[358501296,1745214661639,-829.15,0.00065753,120]
[358501297,1745214661649,-611.56184113,0.00065753,120]
[358501298,1745214661659,-768.77,0.00065753,120]
[358501299,1745214661671,-597.8,0.00065753,120]
[358501300,1745214661681,-2883.81,0.00065753,2]
[358501301,1745214661691,-677.43,0.00065753,120]
[358501302,1745214661701,-1616.9,0.00065753,120]
[358501303,1745214661711,-500.0,0.00065753,120]
[358501304,1745214661721,-1210.3,0.00065753,120]
[358501305,1745214661737,-500.0,0.00065753,120]
[358501306,1745214661748,-549.92,0.00065753,120]
[358501307,1745214661758,-500.0,0.00065753,2]
[358501308,1745214661769,-1260.87,0.00065753,120]
[358501309,1745214661780,-967.34,0.00065753,120]
[358501310,1745214661790,-178.16470497,0.00065753,120]
[358501311,1745214661800,-500.0,0.00065753,120]
[358501312,1745214661809,-928.59,0.00065753,120]
[358501313,1745214661820,-684.21,0.00065753,120]
[358501314,1745214661830,-500.0,0.00065753,120]
[358501315,1745214661840,-500.0,0.00065754,120]
[358501316,1745214661851,-500.0,0.00065754,120]
[358501317,1745214661861,-1984.0,0.00065754,120]
[358501318,1745214661875,-791.0,0.00065754,120]
[358501319,1745214661885,-500.0,0.00065754,120]
[358501320,1745214661895,-500.0,0.00065754,120]
[358501321,1745214661905,-500.0,0.00065754,120]
[358501322,1745214661915,-166.67,0.00065826,2]
[358501323,1745214661924,-214.39935321,0.00065865,120]
[358501324,1745214661934,-175.575359,0.000659,120]
[358501325,1745214661946,-23200.0,0.000659,24]
[358501326,1745214661957,-244.73,0.000659,60]
[358501327,1745214661969,-1000.0,0.00065999,120]
[358501328,1745214661983,-2414.4,0.00066,60]
[358501329,1745214661993,-200.0,0.00066,120]
[358501330,1745214662003,-292.0,0.00066,120]
[358501331,1745214662013,-2000.0,0.00066,120]
[358501332,1745214662022,-151.0,0.00066,120]
[358501333,1745214662032,-150.0,0.00066012,60]
[358501334,1745214662042,-500.0,0.00066077,120]
[358501335,1745214662052,-2110.0,0.00066125,30]
[358501336,1745214662061,-150.0,0.00066244,60]
[358501337,1745214662071,-1300.0,0.00066269,120]
[358501338,1745214662081,-1455.0,0.00066291,60]
[358501339,1745214662090,-2849.1,0.00066301,120]
[358501340,1745214662099,-1679.61,0.00066301,7]
[358501341,1745214662110,-599.27,0.00066301,120]
[358501342,1745214662121,-500.0,0.00066301,120]
[358501343,1745214662131,-947.83,0.00066301,120]
[358501344,1745214662142,-500.0,0.00066301,120]
[358501345,1745214662153,-648.72,0.00066301,120]
[358501346,1745214662163,-497.48966851,0.00066301,2]
[358501347,1745214662173,-595.6477018,0.00066301,120]
[358501348,1745214662183,-500.0,0.00066301,120]
[358501349,1745214662193,-500.0,0.00066301,14]
[358501350,1745214662203,-1007.83,0.00066301,120]
[358501351,1745214662213,-500.0,0.00066301,120]
[358501352,1745214662226,-527.13,0.00066301,120]
[358501353,1745214662238,-1890.04,0.00066301,120]
[358501354,1745214662248,-676.5,0.00066301,120]
[358501355,1745214662257,-841.95,0.00066301,120]
[358501356,1745214662268,-500.0,0.00066301,120]
[358501357,1745214662277,-793.51,0.00066301,120]
[358501358,1745214662288,-500.0,0.00066301,120]
[358501359,1745214662297,-500.0,0.00066301,120]
[358501360,1745214662307,-500.0,0.00066301,120]
[358501361,1745214662316,-500.0,0.00066301,120]
[358501362,1745214662326,-500.0,0.00066301,120]
[358501363,1745214662335,-1888.77,0.00066301,120]
[358501364,1745214662345,-500.0,0.00066301,120]
[358501365,1745214662354,-500.0,0.00066301,120]
[358501366,1745214662366,-151.0,0.00066301,120]
[358501367,1745214662375,-500.0,0.00066301,120]
[358501368,1745214662385,-500.0,0.00066301,12]
[358501369,1745214662395,-612.09,0.00066301,120]
[358501370,1745214662404,-500.0,0.00066301,120]
[358501371,1745214662414,-592.31,0.00066301,120]
[358501372,1745214662424,-500.0,0.00066301,120]
[358501373,1745214662437,-1478.95,0.00066301,120]
[358501374,1745214662447,-656.63,0.00066301,120]
[358501375,1745214662459,-500.0,0.00066301,120]
[358501376,1745214662469,-608.34,0.00066301,120]
[358501377,1745214662479,-638.66,0.00066301,120]
[358501378,1745214662489,-926.33,0.00066301,120]
[358501379,1745214662499,-500.0,0.00066301,120]
[358501380,1745214662509,-869.56,0.00066301,120]
[358501381,1745214662519,-500.0,0.00066301,120]
[358501382,1745214662528,-591.62,0.00066301,120]
[358501383,1745214662539,-1833.37,0.00066301,120]
[358501384,1745214662548,-500.0,0.00066301,8]
[358501385,1745214662558,-910.06,0.00066301,120]
[358501386,1745214662568,-829.15,0.00066301,120]
[358501387,1745214662578,-768.77,0.00066301,120]
[358501388,1745214662587,-597.8,0.00066301,120]
[358501389,1745214662597,-2883.81,0.00066301,2]
[358501390,1745214662607,-677.43,0.00066301,120]
[358501391,1745214662617,-1616.9,0.00066301,120]
[358501392,1745214662628,-500.0,0.00066301,120]
[358501393,1745214662639,-1210.3,0.00066301,120]
[358501394,1745214662649,-500.0,0.00066301,120]
[358501395,1745214662659,-549.92,0.00066301,120]
[358501396,1745214662670,-500.0,0.00066301,2]
[358501397,1745214662680,-1260.87,0.00066301,120]
[358501398,1745214662691,-967.34,0.00066301,120]
[358501399,1745214662701,-500.0,0.00066301,120]
[358501400,1745214662712,-928.59,0.00066301,120]
[358501401,1745214662723,-684.21,0.00066301,120]
[358501402,1745214662735,-500.0,0.00066301,120]
[358501403,1745214662746,-600.0,0.00066301,120]
[358501404,1745214662869,-600.0,0.00066301,120]
[358501405,1745214662879,-600.0,0.00066301,120]
[358501406,1745214662888,-600.0,0.00066301,120]
[358501407,1745214662897,-600.0,0.00066301,120]
[358501408,1745214662906,-331.56685796,0.00066301,120]
[358501409,1745214663103,-402.56895293,0.00063013,2]
[358501410,1745214663112,-182.98247436,0.00063013,120]
[358501411,1745214663122,-268.43314204,0.00066301,120]
[358501412,1745214663131,-335.87257448,0.00066301,120]
[358501413,1745214663142,-264.12742552,0.00066301,120]
[358501414,1745214663152,-600.0,0.00066301,120]
[358501415,1745214663161,-600.0,0.00066301,120]
[358501416,1745214663171,-600.0,0.00066301,120]
[358501417,1745214663180,-590.79919293,0.00066301,120]
[358501418,1745214663195,-9.20080707,0.00066301,120]
[358501419,1745214663204,-455.48888246,0.00066301,120]
[358501420,1745214663214,-500.0,0.00066302,120]
[358501421,1745214663224,-500.0,0.00066302,120]
[358501422,1745214663235,-96.03076921,0.00066302,120]
[358501423,1745214663250,-1429.87219423,0.00066302,120]
[358501424,1745214663262,-458.09703656,0.00066302,120]
[358501425,1745214663272,-791.0,0.00066302,120]
[358501426,1745214663282,-264.72040301,0.00066302,120]
[358501427,1745214663293,-235.27959699,0.00066302,120]
[358501428,1745214663302,-500.0,0.00066302,120]
[358501429,1745214663311,-500.0,0.00066302,120]
[358501430,1745214663321,-878.22,0.00066304,120]
[358501431,1745214663330,-152.875141,0.00066305,120]
[358501432,1745214663339,-152.875141,0.00066305,120]
[358501433,1745214663349,-121.48012101,0.00066305,120]
[358501434,1745214663361,-29.51987899,0.00066305,120]
[358501435,1745214663371,-3840.31233586,0.00066305,4]
[358501436,1745214663431,-517.50802046,0.00063013,120]
[358501437,1745214663440,-3599.28309046,0.00066305,4]
[358501438,1745214663453,-88177.13932208,0.00066305,4]
[358501439,1745214663463,-13295.895402,0.00066305,4]
[358501440,1745214663473,-4490.5584074,0.00066305,4]
[358501441,1745214663485,-150.0,0.00066328,60]
[358501442,1745214663494,-175.575359,0.0006635,120]
[358501443,1745214663504,-200.0,0.000664,120]
[358501444,1745214663514,-200.0,0.000664,120]
[358501445,1745214663524,-175.575359,0.000664,2]
[358501446,1745214663533,-157.267263,0.000664,2]
[358501447,1745214663544,-154.289613,0.000664,2]
[358501448,1745214663553,-155.277727,0.000664,2]
[358501449,1745214663563,-153.229548,0.000664,2]
[358501450,1745214663573,-156.274713,0.000664,2]
[358501451,1745214663583,-175.575359,0.000664,2]
[358501452,1745214663592,-176.087991,0.000664,2]
[358501453,1745214663603,-157.26,0.00066418,120]
[358501454,1745214663613,-505.948551,0.00066422,120]
[358501455,1745214663623,-2000.0,0.00066422,120]
[358501456,1745214663634,-200.0,0.00066422,120]
[358501457,1745214663644,-243.3956206,0.00066576,120]
[358501458,1745214663654,-150.0,0.00066576,120]
[358501459,1745214663664,-150.0,0.00066576,120]
[358501460,1745214663674,-150.0,0.00066576,120]
[358501461,1745214663684,-150.0,0.00066576,120]
[358501462,1745214663694,-150.0,0.00066576,120]
[358501463,1745214663703,-150.0,0.00066576,120]
[358501464,1745214663713,-150.0,0.00066576,120]
[358501465,1745214663723,-1000.0,0.000666,35]
[358501466,1745214663734,-166.66,0.00066612,2]
[358501467,1745214663744,-2124.09,0.00066625,30]
[358501468,1745214663753,-243.3956206,0.0006665,120]
[358501469,1745214663764,-150.0,0.00066674,120]
[358501470,1745214663773,-211.0,0.0006669,30]
[358501471,1745214663783,-209.0,0.0006669,30]
[358501472,1745214663794,-549.95026844,0.00066712,120]
[358501473,1745214663804,-243.3956206,0.00066725,120]
[358501474,1745214663813,-150.0,0.00066728,120]
[358501475,1745214663823,-150.0,0.0006673,120]
[358501476,1745214663832,-955.10225303,0.00066761,120]
[358501477,1745214663842,-150.0,0.00066773,120]
[358501478,1745214663851,-150.0,0.00066793,120]
[358501479,1745214663861,-243.3956206,0.000668,120]
[358501480,1745214663873,-858.93855358,0.000668,120]
[358501481,1745214663883,-2414.4,0.000668,60]
[358501482,1745214663892,-175.575359,0.000668,120]
[358501483,1745214663902,-150.0,0.00066814,120]
[358501484,1745214663911,-500.0,0.00066849,120]
[358501485,1745214663922,-500.0,0.00066849,120]
[358501486,1745214663931,-500.0,0.00066849,120]
[358501487,1745214663940,-1679.61,0.00066849,7]
[358501488,1745214663952,-599.27,0.00066849,120]
[358501489,1745214663962,-500.0,0.00066849,120]
[358501490,1745214663971,-947.83,0.00066849,120]
[358501491,1745214663983,-500.0,0.00066849,120]
[358501492,1745214663992,-648.72,0.00066849,120]
[358501493,1745214664001,-289.11833,0.00066849,120]
[358501494,1745214664012,-500.0,0.00066849,120]
[358501495,1745214664021,-500.0,0.00066849,14]
[358501496,1745214664032,-1007.83,0.00066849,120]
[358501497,1745214664042,-500.0,0.00066849,120]
[358501498,1745214664052,-527.13,0.00066849,120]
[358501499,1745214664061,-1890.04,0.00066849,120]
[358501500,1745214664070,-676.5,0.00066849,120]
[358501501,1745214664080,-841.95,0.00066849,120]
[358501502,1745214664089,-500.0,0.00066849,120]
[358501503,1745214664099,-793.51,0.00066849,120]
[358501504,1745214664108,-266.96465056,0.00066849,120]
[358501505,1745214664118,-500.0,0.00066849,120]
[358501506,1745214664128,-500.0,0.00066849,120]
[358501507,1745214664138,-500.0,0.00066849,120]
[358501508,1745214664148,-500.0,0.00066849,120]
[358501509,1745214664157,-1888.77,0.00066849,120]
[358501510,1745214664167,-500.0,0.00066849,120]
[358501511,1745214664176,-500.0,0.00066849,120]
[358501512,1745214664185,-290.54373322,0.00066849,120]
[358501513,1745214664194,-500.0,0.00066849,12]
[358501514,1745214664204,-612.09,0.00066849,120]
[358501515,1745214664213,-540.82874508,0.00066849,120]
[358501516,1745214664222,-592.31,0.00066849,120]
[358501517,1745214664233,-500.0,0.00066849,120]
[358501518,1745214664243,-1478.95,0.00066849,120]
[358501519,1745214664254,-656.63,0.00066849,120]
[358501520,1745214664263,-500.0,0.00066849,120]
[358501521,1745214664273,-608.34,0.00066849,120]
[358501522,1745214664283,-638.66,0.00066849,120]
[358501523,1745214664292,-926.33,0.00066849,120]
[358501524,1745214664301,-500.0,0.00066849,120]
[358501525,1745214664311,-869.56,0.00066849,120]
[358501526,1745214664320,-500.0,0.00066849,120]
[358501527,1745214664331,-591.62,0.00066849,120]
[358501528,1745214664341,-1833.37,0.00066849,120]
[358501529,1745214664352,-535.37622939,0.00066849,8]
[358501530,1745214664362,-910.06,0.00066849,120]
[358501531,1745214664371,-829.15,0.00066849,120]
[358501532,1745214664381,-768.77,0.00066849,120]
[358501533,1745214664391,-597.8,0.00066849,120]
[358501534,1745214664401,-2883.81,0.00066849,2]
[358501535,1745214664410,-677.43,0.00066849,120]
[358501536,1745214664419,-1616.9,0.00066849,120]
[358501537,1745214664429,-281.06536325,0.00066849,120]
[358501538,1745214664439,-1210.3,0.00066849,120]
[358501539,1745214664449,-500.0,0.00066849,120]
[358501540,1745214664459,-549.92,0.00066849,120]
[358501541,1745214664469,-500.0,0.00066849,2]
[358501542,1745214664480,-1260.87,0.00066849,120]
[358501543,1745214664490,-967.34,0.00066849,120]
[358501544,1745214664499,-500.0,0.00066849,120]
[358501545,1745214664509,-928.59,0.00066849,120]
[358501546,1745214664520,-684.21,0.00066849,120]
[358501547,1745214664530,-500.0,0.00066849,120]
[358501548,1745214664540,-500.0,0.0006685,120]
[358501549,1745214664549,-1984.0,0.0006685,120]
[358501550,1745214664559,-791.0,0.0006685,120]
[358501551,1745214664569,-500.0,0.0006685,120]
[358501552,1745214664579,-500.0,0.0006685,120]
[358501553,1745214664589,-500.0,0.0006685,120]
[358501554,1745214664600,-151.0,0.0006685,120]
[358501555,1745214664610,-150.0,0.00066872,120]
[358501556,1745214664619,-150.0,0.00066873,120]
[358501557,1745214664629,-243.3956206,0.00066875,120]
[358501558,1745214664638,-150.0,0.00066884,120]
[358501559,1745214664648,-152.0,0.00066885,3]
[358501560,1745214664658,-153.229548,0.000669,120]
[358501561,1745214664667,-727.92,0.00066906,2]
[358501562,1745214664678,-244.663321,0.00066926,60]
[358501563,1745214664688,-175.575359,0.00066926,60]
[358501564,1745214664698,-157.267263,0.00066926,60]
[358501565,1745214664707,-154.289613,0.00066926,60]
[358501566,1745214664718,-153.229548,0.00066926,60]
[358501567,1745214664729,-243.3956206,0.00066949,120]
[358501568,1745214664739,-1455.0,0.00066961,60]
[358501569,1745214664749,-529.07464885,0.00066961,60]
[358501570,1745214664759,-150.0,0.0006697,120]
[358501571,1745214664768,-150.0,0.00066987,120]
[358501572,1745214664778,-1000.0,0.00066999,120]
[358501573,1745214664788,-200.0,0.00067,120]
[358501574,1745214664797,-7000.0,0.00067,10]
[358501575,1745214664807,-150.0,0.00067011,120]
[358501576,1745214664816,-243.3956206,0.00067024,120]
[358501577,1745214664826,-150.0,0.00067038,120]
[358501578,1745214664835,-150.0,0.00067053,120]
[358501579,1745214664845,-150.0,0.00067069,120]
[358501580,1745214664855,-243.3956206,0.00067099,120]
[358501581,1745214664868,-150.0,0.00067167,120]
[358501582,1745214664877,-243.3956206,0.00067173,120]
[358501583,1745214664887,-150.0,0.00067192,120]
[358501584,1745214664897,-157.267263,0.00067225,120]
[358501585,1745214664908,-153.229548,0.00067225,120]
[358501586,1745214664917,-150.0,0.00067228,120]
[358501587,1745214664926,-243.3956206,0.00067248,120]
[358501588,1745214664936,-175.575359,0.0006725,120]
[358501589,1745214664946,-150.0,0.00067266,120]
[358501590,1745214664956,-150.0,0.00067292,120]
[358501591,1745214664965,-590.72563471,0.00067297,2]
[358501592,1745214664975,-152.81,0.000673,69]
[358501593,1745214664987,-152.81,0.000673,69]
[358501594,1745214664997,-152.81,0.000673,69]
[358501595,1745214665007,-152.81,0.000673,69]
[358501596,1745214665016,-152.81,0.000673,69]
[358501597,1745214665026,-152.81,0.000673,69]
[358501598,1745214665035,-152.81,0.000673,69]
[358501599,1745214665044,-152.81,0.000673,69]
[358501600,1745214665054,-152.81,0.000673,69]
[358501601,1745214665064,-152.81,0.000673,69]
[358501602,1745214665074,-152.81,0.000673,69]
[358501603,1745214665083,-152.81,0.000673,69]
[358501604,1745214665092,-152.81,0.000673,69]
[358501605,1745214665102,-152.81,0.000673,69]
[358501606,1745214665112,-152.81,0.000673,69]
[358501607,1745214665121,-152.81,0.000673,69]
[358501608,1745214665130,-152.81,0.000673,69]
[358501609,1745214665140,-152.81,0.000673,69]
[358501610,1745214665149,-152.81,0.000673,69]
[358501611,1745214665158,-152.81,0.000673,69]
[358501612,1745214665167,-152.81,0.000673,69]
[358501613,1745214665177,-152.81,0.000673,69]
[358501614,1745214665187,-152.81,0.000673,69]
[358501615,1745214665197,-152.81,0.000673,69]
[358501616,1745214665206,-150.0,0.00067301,120]
[358501617,1745214665215,-243.3956206,0.00067323,120]
[358501618,1745214665224,-150.0,0.00067346,120]
[358501619,1745214665236,-150.0,0.00067347,120]
[358501620,1745214665245,-153.22955,0.0006735,120]
[358501621,1745214665254,-157.267263,0.0006735,120]
[358501622,1745214665264,-175.575359,0.0006735,120]
[358501623,1745214665273,-150.0,0.00067364,120]
[358501624,1745214665282,-150.0,0.00067365,120]
[358501625,1745214665291,-878.22,0.00067396,120]
[358501626,1745214665300,-500.0,0.00067397,120]
[358501627,1745214665308,-536.06146901,0.00067397,120]
[358501628,1745214665317,-500.0,0.00067397,120]
[358501629,1745214665326,-1679.61,0.00067397,7]
[358501630,1745214665336,-599.27,0.00067397,120]
[358501631,1745214665346,-500.0,0.00067397,120]
[358501632,1745214665355,-947.83,0.00067397,120]
[358501633,1745214665364,-500.0,0.00067397,120]
[358501634,1745214665373,-648.72,0.00067397,120]
[358501635,1745214665383,-500.0,0.00067397,120]
[358501636,1745214665392,-500.0,0.00067397,14]
[358501637,1745214665401,-1007.83,0.00067397,120]
[358501638,1745214665410,-500.0,0.00067397,120]
[358501639,1745214665420,-527.13,0.00067397,120]
[358501640,1745214665429,-1890.04,0.00067397,120]
[358501641,1745214665438,-676.5,0.00067397,120]
[358501642,1745214665563,-841.95,0.00067397,120]
[358501643,1745214665574,-500.0,0.00067397,120]
[358501644,1745214665584,-793.51,0.00067397,120]
[358501645,1745214665593,-285.88318397,0.00067397,120]
[358501646,1745214665603,-500.0,0.00067397,120]
[358501647,1745214665613,-500.0,0.00067397,120]
[358501648,1745214665623,-1888.77,0.00067397,120]
[358501649,1745214665632,-500.0,0.00067397,120]
[358501650,1745214665642,-500.0,0.00067397,120]
[358501651,1745214665652,-500.0,0.00067397,12]
[358501652,1745214665661,-612.09,0.00067397,120]
[358501653,1745214665670,-592.31,0.00067397,120]
[358501654,1745214665680,-500.0,0.00067397,120]
[358501655,1745214665691,-1478.95,0.00067397,120]
[358501656,1745214665701,-656.63,0.00067397,120]
[358501657,1745214665710,-500.0,0.00067397,120]
[358501658,1745214665720,-608.34,0.00067397,120]
[358501659,1745214665730,-638.66,0.00067397,120]
[358501660,1745214665739,-926.33,0.00067397,120]
[358501661,1745214665749,-500.0,0.00067397,120]
[358501662,1745214665758,-869.56,0.00067397,120]
[358501663,1745214665767,-500.0,0.00067397,120]
[358501664,1745214665776,-591.62,0.00067397,120]
[358501665,1745214665787,-1833.37,0.00067397,120]
[358501666,1745214665796,-910.06,0.00067397,120]
[358501667,1745214665805,-829.15,0.00067397,120]
[358501668,1745214665814,-768.77,0.00067397,120]
[358501669,1745214665823,-597.8,0.00067397,120]
[358501670,1745214665832,-2883.81,0.00067397,2]
[358501671,1745214665842,-677.43,0.00067397,120]
[358501672,1745214665851,-1616.9,0.00067397,120]
[358501673,1745214665865,-1210.3,0.00067397,120]
[358501674,1745214665874,-500.0,0.00067397,120]
[358501675,1745214665884,-549.92,0.00067397,120]
[358501676,1745214665894,-500.0,0.00067397,2]
[358501677,1745214665904,-1260.87,0.00067397,120]
[358501678,1745214665913,-967.34,0.00067397,120]
[358501679,1745214665923,-500.0,0.00067397,120]
[358501680,1745214665932,-928.59,0.00067397,120]
[358501681,1745214665943,-684.21,0.00067397,120]
[358501682,1745214665953,-500.0,0.00067397,120]
[358501683,1745214665962,-500.0,0.00067398,120]
[358501684,1745214665971,-1984.0,0.00067398,120]
[358501685,1745214665982,-791.0,0.00067398,120]
[358501686,1745214665992,-181.52508164,0.00067398,120]
[358501687,1745214666001,-243.3956206,0.00067398,120]
[358501688,1745214666010,-150.0,0.00067398,120]